bitfinex-derivatives/quotes_BTCF0:USTF0_20250827
["timestamp","ask_amount","ask_price","bid_price","bid_amount"]
[1756267261050,0.0916912,111490.0,111480.0,0.58316543]
[1756267262048,0.002,111490.0,111480.0,0.58316543]
[1756267262450,0.002,111490.0,111480.0,0.69522175]
[1756267262956,0.002,111490.0,111480.0,0.58316543]
[1756267263249,0.002,111490.0,111480.0,1.42256418]
[1756267263455,0.11634879,111510.0,111500.0,0.2358065]
[1756267263657,0.11634879,111510.0,111500.0,0.58314893]
[1756267264050,0.11634879,111510.0,111500.0,0.14613]
[1756267264258,0.46369122,111510.0,111500.0,0.14613]
[1756267264453,0.71369122,111510.0,111500.0,0.02989]
[1756267265047,0.36934879,111510.0,111500.0,0.02989]
[1756267265253,0.0896766,111500.0,111490.0,0.08903083]
[1756267265553,0.9644766,111500.0,111490.0,0.16581083]
[1756267265756,1.31181903,111500.0,111490.0,0.13388083]
[1756267266056,1.31181903,111500.0,111490.0,0.04957083]
[1756267266453,1.56181903,111500.0,111490.0,0.04957083]
[1756267266656,1.56381903,111500.0,111490.0,0.01968083]
[1756267266856,1.56481903,111500.0,111490.0,0.01968083]
[1756267267759,0.0896846,111490.0,111480.0,0.02857]
[1756267267959,0.43702703,111490.0,111480.0,0.0681]
[1756267269262,0.43802703,111490.0,111480.0,0.12719]
[1756267269459,1.31254703,111490.0,111480.0,0.12719]
[1756267270062,1.31454703,111490.0,111480.0,0.10039]
[1756267270262,0.9671246,111490.0,111480.0,0.14612]
[1756267270454,0.0926846,111490.0,111480.0,0.83315513]
[1756267270660,0.003,111490.0,111480.0,0.83315513]
[1756267272259,0.0926846,111490.0,111480.0,0.83315513]
[1756267272766,0.003,111490.0,111480.0,0.83315513]
[1756267273153,0.0926846,111490.0,111480.0,0.83315513]
[1756267273363,0.0926846,111490.0,111480.0,0.94521145]
[1756267273865,0.0926846,111490.0,111480.0,0.83315513]
[1756267274267,0.0926846,111490.0,111480.0,1.55475513]
[1756267274470,0.0926846,111490.0,111480.0,1.2074127]
[1756267274675,0.0926846,111490.0,111480.0,1.55475513]
[1756267277170,0.0926846,111490.0,111480.0,1.2074127]
[1756267277374,0.0926846,111490.0,111480.0,1.55475513]
[1756267278674,0.0926846,111490.0,111480.0,1.66681145]
[1756267279277,0.0926846,111490.0,111480.0,1.31946902]
[1756267279479,0.0926846,111490.0,111480.0,1.66681145]
[1756267282079,0.0926846,111490.0,111480.0,0.94521145]
[1756267282777,0.0926846,111490.0,111480.0,0.59786902]
[1756267283082,0.0926846,111490.0,111480.0,0.94521145]
[1756267284579,0.0926846,111490.0,111480.0,0.59786902]
[1756267284781,0.0926846,111490.0,111480.0,0.94521145]
[1756267285383,0.0926846,111490.0,111480.0,0.59786902]
[1756267285683,0.69002703,111490.0,111480.0,0.14612]
[1756267285881,0.69002703,111490.0,111480.0,0.2358127]
[1756267286081,0.3426846,111490.0,111480.0,0.2358127]
[1756267287886,0.3426846,111490.0,111480.0,0.14612]
[1756267288086,0.69002703,111490.0,111480.0,0.14612]
[1756267288585,0.7082347,111490.0,111480.0,0.11383]
[1756267288886,0.7082347,111490.0,111480.0,0.14612]
[1756267290084,0.7082347,111490.0,111480.0,0.2358127]
[1756267290686,0.36089227,111490.0,111480.0,0.14612]
[1756267291194,0.02120767,111490.0,111480.0,0.58315513]
[1756267291590,0.11089237,111490.0,111480.0,0.58315513]
[1756267292586,0.11089237,111490.0,111480.0,0.69521145]
[1756267293481,0.11089237,111490.0,111480.0,0.34786902]
[1756267293687,0.11089237,111490.0,111480.0,0.69521145]
[1756267293887,0.11089237,111490.0,111480.0,0.60551875]
[1756267294089,0.11089237,111490.0,111480.0,0.14612]
[1756267294588,0.11089237,111490.0,111480.0,0.25817632]
[1756267295187,0.11089237,111490.0,111480.0,0.60551875]
[1756267295386,0.11089237,111490.0,111480.0,0.69521135]
[1756267296192,0.02120767,111490.0,111480.0,0.69521135]
[1756267296388,0.11634709,111510.0,111500.0,0.0896766]
[1756267296586,0.11634709,111510.0,111500.0,0.58577903]
[1756267296794,0.10783051,111520.0,111510.0,0.14876]
[1756267297090,0.11797051,111520.0,111510.0,0.49610243]
[1756267297795,0.11797051,111520.0,111510.0,0.2384285]
[1756267297990,0.10783051,111520.0,111510.0,0.2384285]
[1756267298291,0.10783051,111520.0,111510.0,0.5992285]
[1756267298480,0.10983051,111520.0,111510.0,0.94657093]
[1756267299489,0.11373051,111520.0,111510.0,0.94657093]
[1756267300095,0.11997051,111520.0,111510.0,0.85690243]
[1756267300394,0.14080197,111520.0,111510.0,0.85690243]
[1756267300888,0.14080197,111520.0,111510.0,0.50956]
[1756267301094,0.13456197,111520.0,111510.0,0.50956]
[1756267301395,0.14080197,111520.0,111510.0,0.50956]
[1756267302691,0.13066197,111520.0,111510.0,0.85690243]
[1756267303594,0.13456197,111520.0,111510.0,0.85690243]
[1756267304590,0.13456197,111520.0,111510.0,0.94657103]
[1756267305399,0.13066197,111520.0,111510.0,0.94657103]
[1756267306092,0.04099427,111520.0,111510.0,0.94657103]
[1756267306293,0.13065487,111520.0,111510.0,0.5992286]
[1756267306597,0.11249206,111520.0,111510.0,0.94657103]
[1756267306891,0.12263206,111520.0,111510.0,0.50956]
[1756267307298,0.48812588,111520.0,111510.0,0.50956]
[1756267307702,0.84892588,111520.0,111510.0,0.14876]
[1756267307895,1.09892588,111520.0,111510.0,0.11413]
[1756267308094,1.44626831,111520.0,111510.0,0.04686]
[1756267308391,1.44626831,111520.0,111510.0,0.02936]
[1756267309801,0.0998086,111510.0,111500.0,0.02936]
[1756267310001,1.67899103,111510.0,111500.0,0.04686]
[1756267311101,1.67899103,111510.0,111500.0,0.02936]
[1756267311693,1.67899103,111510.0,111500.0,0.04786]
[1756267311889,1.67899103,111510.0,111500.0,0.12996]
[1756267312099,1.67891103,111510.0,111500.0,0.14976]
[1756267312601,0.0998086,111510.0,111500.0,0.14976]
[1756267312795,1.31799103,111510.0,111500.0,0.14976]
[1756267313102,0.44715103,111510.0,111500.0,0.14976]
[1756267313400,1.31995103,111510.0,111500.0,0.14876]
[1756267313598,1.32095103,111510.0,111500.0,0.14876]
[1756267314597,0.0989086,111510.0,111500.0,0.14876]
[1756267314803,0.1028086,111510.0,111500.0,0.14876]
[1756267314999,0.003,111510.0,111500.0,1.19657913]
[1756267315200,0.0926686,111510.0,111500.0,1.19657913]
[1756267315717,0.0965686,111510.0,111500.0,0.8492367]
[1756267315892,0.0926686,111510.0,111500.0,0.8492367]
[1756267316092,0.0926686,111510.0,111500.0,1.19657913]
[1756267316296,0.0906686,111510.0,111500.0,1.19657913]
[1756267316602,0.0906686,111510.0,111500.0,1.30863545]
[1756267316903,0.001,111510.0,111500.0,1.19657913]
[1756267317201,0.0906686,111510.0,111500.0,1.19657913]
[1756267317401,0.0906686,111510.0,111500.0,0.8492367]
[1756267317699,0.0906686,111510.0,111500.0,1.19657913]
[1756267318005,0.0896686,111510.0,111500.0,1.19757913]
[1756267318302,0.0896686,111510.0,111500.0,1.19657913]
[1756267318506,0.0896686,111510.0,111500.0,1.19757913]
[1756267321006,0.12864675,111520.0,111510.0,0.2384286]
[1756267321202,0.12864675,111520.0,111510.0,0.94657103]
[1756267321998,0.12864675,111520.0,111510.0,0.5992286]
[1756267322202,0.12864675,111520.0,111510.0,0.94657103]
[1756267322701,0.12964675,111520.0,111510.0,0.94657103]
[1756267323107,0.03998285,111520.0,111510.0,0.94657103]
[1756267323306,0.01915139,111520.0,111510.0,0.94657103]
[1756267325008,0.01915139,111520.0,111510.0,0.94757103]
[1756267325711,0.01815139,111520.0,111510.0,1.19757103]
[1756267326003,0.97737652,111540.0,111530.0,0.0896528]
[1756267326198,0.12966652,111540.0,111530.0,0.94655523]
[1756267326401,0.99872652,111540.0,111530.0,0.94655523]
[1756267326598,0.10761652,111540.0,111530.0,0.94655523]
[1756267328001,0.17974447,111540.0,111530.0,0.94655523]
[1756267328199,0.20179447,111540.0,111530.0,0.94655523]
[1756267328599,0.20079447,111540.0,111530.0,0.94655523]
[1756267328801,0.22269447,111540.0,111530.0,0.5992128]
[1756267329004,0.22469447,111540.0,111530.0,0.50956]
[1756267329509,0.24517588,111540.0,111530.0,0.50956]
[1756267330112,0.22327588,111540.0,111530.0,0.5992129]
[1756267330411,0.19922588,111540.0,111530.0,0.5992129]
[1756267330809,0.24317588,111540.0,111530.0,0.5992129]
[1756267331015,0.24417588,111540.0,111530.0,0.85690243]
[1756267331311,0.20022588,111540.0,111530.0,0.5992129]
[1756267331514,0.24417588,111540.0,111530.0,0.5992129]
[1756267331813,0.24417588,111540.0,111530.0,0.94655533]
[1756267332010,0.20022588,111540.0,111530.0,0.94655533]
[1756267332314,0.20022058,111540.0,111530.0,0.94655533]
[1756267332809,0.07212795,111540.0,111530.0,0.94655533]
[1756267333011,0.07212795,111540.0,111530.0,1.55735533]
[1756267333615,0.01587795,111540.0,111530.0,2.42647533]
[1756267333819,0.0896369,111550.0,111540.0,0.1482649]
[1756267334023,1.72721,111560.0,111540.0,0.94218733]
[1756267334317,0.20318883,111570.0,111560.0,0.10805]
[1756267334611,1.09252106,111570.0,111560.0,0.94217123]
[1756267334917,0.99886113,111570.0,111560.0,0.5948288]
[1756267335111,0.99886113,111570.0,111560.0,0.5052]
[1756267335317,1.06973338,111570.0,111560.0,0.5052]
[1756267335715,1.06973338,111570.0,111560.0,0.94217123]
[1756267336820,1.07073338,111570.0,111560.0,0.94217123]
[1756267338222,1.07073338,111570.0,111560.0,0.5948288]
[1756267338422,1.07073338,111570.0,111560.0,0.94217123]
[1756267338816,1.07073338,111570.0,111560.0,0.5948288]
[1756267340121,0.20173338,111570.0,111560.0,0.5948288]
[1756267340423,1.07033338,111570.0,111560.0,0.94217123]
[1756267342623,0.09220448,111570.0,111560.0,1.19217123]
[1756267343123,0.07187225,111570.0,111560.0,2.06033123]
[1756267343516,0.07187225,111570.0,111560.0,1.19217123]
[1756267343722,0.07187225,111570.0,111560.0,2.06033123]
[1756267344220,0.001,111570.0,111560.0,1.7129088]
[1756267344523,0.1029847,111580.0,111570.0,0.2340214]
[1756267344717,0.1029847,111580.0,111570.0,0.94216383]
[1756267345026,0.70868713,111580.0,111570.0,0.08606]
[1756267345222,0.70868713,111580.0,111570.0,0.06707]
[1756267345522,0.70868713,111580.0,111570.0,0.09941]
[1756267345730,0.70868713,111580.0,111570.0,0.12541]
[1756267345923,0.70968713,111580.0,111570.0,0.1444]
[1756267346324,0.70968713,111580.0,111570.0,0.1184]
[1756267346621,0.1113515,111570.0,111560.0,0.06707]
[1756267346814,0.1029995,111560.0,111550.0,0.0471247]
[1756267347013,0.81950193,111560.0,111550.0,0.0471247]
[1756267347222,1.06950193,111560.0,111550.0,0.0471247]
[1756267347419,1.06950193,111560.0,111550.0,0.0644847]
[1756267347718,1.14144166,111560.0,111550.0,0.1190947]
[1756267348025,0.78064166,111560.0,111550.0,0.255723]
[1756267348321,0.07193973,111560.0,111550.0,0.96386543]
[1756267348519,0.98914782,111570.0,111560.0,0.1482506]
[1756267348718,0.98914782,111570.0,111560.0,0.94217303]
[1756267349225,0.98914782,111570.0,111560.0,0.5948306]
[1756267349619,0.98910782,111570.0,111560.0,0.5948306]
[1756267349824,0.12146782,111570.0,111560.0,0.5948306]
[1756267350021,0.98902782,111570.0,111560.0,0.5948306]
[1756267350826,0.99002782,111570.0,111560.0,0.5948306]
[1756267351120,0.12246782,111570.0,111560.0,0.5948306]
[1756267351326,0.88702812,111570.0,111560.0,1.00174999]
[1756267352024,0.99002082,111570.0,111560.0,0.5948306]
[1756267352226,1.06001829,111570.0,111560.0,0.5948306]
[1756267352615,0.19245829,111570.0,111560.0,0.5948306]
[1756267352825,1.05989829,111570.0,111560.0,0.5948306]
[1756267353328,1.04652829,111570.0,111560.0,0.5948306]
[1756267353620,0.08946559,111570.0,111560.0,0.5948306]
[1756267353827,0.07099747,111570.0,111560.0,1.00174999]
[1756267355428,0.07099747,111570.0,111560.0,0.5948306]
[1756267355629,0.07099747,111570.0,111560.0,1.00174999]
[1756267357222,0.16062017,111570.0,111560.0,1.00174999]
[1756267357419,0.17740017,111570.0,111560.0,0.5052]
[1756267357622,0.17740017,111570.0,111560.0,0.1444]
[1756267357922,0.59267956,111570.0,111560.0,0.11206]
[1756267358124,0.18576017,111570.0,111560.0,0.14605]
[1756267358527,0.54656017,111570.0,111560.0,0.14605]
[1756267358729,0.54656017,111570.0,111560.0,0.06707]
[1756267359227,0.1147707,111560.0,111550.0,0.4482547]
[1756267359429,1.74929009,111560.0,111550.0,0.0874547]
[1756267359723,1.3423707,111560.0,111550.0,0.1214447]
[1756267359930,1.3423707,111560.0,111550.0,0.1459247]
[1756267360324,1.74929009,111560.0,111550.0,0.0494547]
[1756267360532,1.3423707,111560.0,111550.0,0.0494547]
[1756267360744,1.74929009,111560.0,111550.0,0.0494547]
[1756267361337,1.74929009,111560.0,111550.0,0.0504547]
[1756267361831,1.99929009,111560.0,111550.0,0.0206847]
[1756267362035,1.99929009,111560.0,111550.0,0.0504547]
[1756267362831,1.99929009,111560.0,111550.0,0.0671247]
[1756267363430,0.7255707,111560.0,111550.0,0.0671247]
[1756267363635,1.5838107,111560.0,111550.0,0.1649347]
[1756267363837,0.7172107,111560.0,111550.0,0.1649347]
[1756267364040,0.9728907,111560.0,111550.0,0.2545734]
[1756267364632,0.19343165,111570.0,111560.0,0.0896307]
[1756267364832,0.97155565,111570.0,111560.0,1.00160009]
[1756267365637,0.97155565,111570.0,111560.0,0.5946807]
[1756267365838,0.10511565,111570.0,111560.0,1.25160009]
[1756267366041,0.95469565,111570.0,111560.0,1.25160009]
[1756267366240,0.08833565,111570.0,111560.0,1.25160009]
[1756267367134,0.08933565,111570.0,111560.0,1.25160009]
[1756267367742,0.20409835,111570.0,111560.0,0.5946807]
[1756267367934,0.19573835,111570.0,111560.0,0.5946807]
[1756267368335,0.19473835,111570.0,111560.0,0.5946807]
[1756267368737,0.19473835,111570.0,111560.0,0.5956807]
[1756267369838,0.19473835,111570.0,111560.0,0.50605]
[1756267370141,0.20309835,111570.0,111560.0,0.12724]
[1756267370335,0.97081774,111570.0,111560.0,0.04744]
[1756267370541,0.97081774,111570.0,111560.0,0.08143]
[1756267370841,1.22081774,111570.0,111560.0,0.03077]
[1756267371343,1.22081774,111570.0,111560.0,0.10276]
[1756267371542,1.67153835,111570.0,111560.0,0.14525]
[1756267371841,1.06069835,111570.0,111560.0,0.14525]
[1756267372141,1.06065835,111570.0,111560.0,0.14525]
[1756267372441,1.06065835,111570.0,111560.0,0.14425]
[1756267373036,0.19473835,111570.0,111560.0,0.2338807]
[1756267373237,1.04724835,111570.0,111560.0,0.5946807]
[1756267373444,1.04824835,111570.0,111560.0,1.00160009]
[1756267373642,0.18236835,111570.0,111560.0,1.00160009]
[1756267373944,0.08933565,111570.0,111560.0,1.00160009]
[1756267374333,0.17895835,111570.0,111560.0,1.00160009]
[1756267374541,0.08933565,111570.0,111560.0,1.00160009]
[1756267375245,0.08833565,111570.0,111560.0,1.00260009]
[1756267375749,0.17795835,111570.0,111560.0,1.00260009]
[1756267376252,0.08833565,111570.0,111560.0,1.00260009]
[1756267377041,0.01833818,111570.0,111560.0,1.25260009]
[1756267377248,1.33419824,111590.0,111580.0,0.2338647]
[1756267377443,0.97339824,111590.0,111580.0,0.64078409]
[1756267377743,1.06367441,111590.0,111580.0,0.64078409]
[1756267377949,1.06367441,111590.0,111580.0,0.2338647]
[1756267378145,1.06708441,111590.0,111580.0,0.64078409]
[1756267378541,0.02223154,111590.0,111580.0,1.00158409]
[1756267379142,0.11183884,111590.0,111580.0,1.00158409]
[1756267379648,0.10983884,111590.0,111580.0,1.00158409]
[1756267379848,0.12801862,111590.0,111580.0,1.00158409]
[1756267380250,0.15315862,111590.0,111580.0,0.47106]
[1756267380548,0.15315862,111590.0,111580.0,0.02977]
[1756267380549,0.55807801,111590.0,111580.0,0.02977]
[1756267380747,0.55807801,111590.0,111580.0,0.08043]
[1756267380948,1.00903862,111590.0,111580.0,0.14425]
[1756267381142,1.01739862,111590.0,111580.0,0.14425]
[1756267381541,0.03501154,111590.0,111580.0,0.2338655]
[1756267381746,0.01823154,111590.0,111580.0,1.00158489]
[1756267381943,0.01923154,111590.0,111580.0,1.00158489]
[1756267382239,0.10974904,111590.0,111580.0,0.5946655]
[1756267382445,0.11031904,111590.0,111580.0,1.00158489]
[1756267382640,0.02014154,111590.0,111580.0,1.00158489]
[1756267382841,0.01923154,111590.0,111580.0,1.00158489]
[1756267383042,0.10883904,111590.0,111580.0,1.00158489]
[1756267383254,0.10883904,111590.0,111580.0,0.5946655]
[1756267383448,0.11031904,111590.0,111580.0,1.00158489]
[1756267384952,0.10883904,111590.0,111580.0,1.00158489]
[1756267385656,0.10940904,111590.0,111580.0,1.00158489]
[1756267385845,0.10883904,111590.0,111580.0,0.5946655]
[1756267386043,0.10883904,111590.0,111580.0,1.00158489]
[1756267386847,0.001,111590.0,111580.0,2.11642489]
[1756267387054,1.1013414,111610.0,111600.0,0.0895994]
[1756267387250,1.1013414,111610.0,111600.0,0.63784879]
[1756267387450,0.0906014,111610.0,111600.0,0.63784879]
[1756267387646,0.01826038,111610.0,111600.0,0.99864879]
[1756267387851,1.33306948,111620.0,111610.0,0.0895914]
[1756267388046,1.33306948,111620.0,111610.0,0.63784079]
[1756267388047,0.46834948,111620.0,111610.0,0.63784079]
[1756267388256,0.03657639,111620.0,111610.0,0.63784079]
[1756267388557,0.01796208,111620.0,111610.0,0.63784079]
[1756267389548,0.01796208,111620.0,111610.0,0.99864079]
[1756267389751,0.01796208,111620.0,111610.0,1.24864079]
[1756267390451,0.01996208,111620.0,111610.0,1.24864079]
[1756267391245,0.01796208,111620.0,111610.0,1.24864079]
[1756267391847,0.10798816,111630.0,111620.0,0.2309134]
[1756267392050,0.10860816,111630.0,111620.0,0.5917134]
[1756267392255,0.46979816,111630.0,111620.0,0.14133]
[1756267392649,0.48316816,111630.0,111620.0,0.14133]
[1756267393154,0.74152816,111630.0,111620.0,0.14133]
[1756267393459,0.74352816,111630.0,111620.0,0.14133]
[1756267393658,0.74552816,111630.0,111620.0,0.14133]
[1756267395056,1.15244755,111630.0,111620.0,0.04349]
[1756267395654,0.74552816,111630.0,111620.0,0.04349]
[1756267396155,0.74552816,111630.0,111620.0,0.09624]
[1756267397662,0.74552816,111630.0,111620.0,0.02741]
[1756267398362,1.15244755,111630.0,111620.0,0.02741]
[1756267399061,1.15244755,111630.0,111620.0,0.09624]
[1756267399365,1.15244755,111630.0,111620.0,0.06474]
[1756267399557,1.15244755,111630.0,111620.0,0.02741]
[1756267400262,1.15244755,111630.0,111620.0,0.04349]
[1756267400760,0.1123234,111620.0,111610.0,0.06474]
[1756267400961,1.76165249,111620.0,111610.0,0.02741]
[1756267401156,1.3547331,111620.0,111610.0,0.12194]
[1756267401460,0.4826931,111620.0,111610.0,0.14133]
[1756267401660,0.9716931,111620.0,111610.0,0.63784079]
[1756267401958,0.1075131,111620.0,111610.0,0.99864079]
[1756267402369,0.0895834,111620.0,111610.0,1.24864079]
[1756267403061,0.0905834,111620.0,111610.0,1.24864079]
[1756267408972,0.59049428,111650.0,111640.0,0.14133]
[1756267409172,1.45349428,111650.0,111640.0,0.14133]
[1756267409371,1.46994106,111650.0,111640.0,0.14133]
[1756267409568,0.2113474,111640.0,111630.0,0.10983]
[1756267409772,0.2113474,111640.0,111630.0,0.09624]
[1756267409969,0.2113474,111640.0,111630.0,0.06474]
[1756267410373,0.2113474,111640.0,111630.0,0.12194]
[1756267410672,0.28251189,111640.0,111630.0,0.14133]
[1756267411267,0.1760854,111630.0,111620.0,0.53523366]
[1756267411468,1.0742754,111630.0,111620.0,0.16144536]
[1756267412871,1.0742754,111630.0,111620.0,0.08485536]
[1756267413280,1.0762754,111630.0,111620.0,0.11635536]
[1756267413469,1.0762754,111630.0,111620.0,0.14205536]
[1756267413674,1.0772754,111630.0,111620.0,0.16144536]
[1756267414179,1.0769954,111630.0,111620.0,0.16144536]
[1756267415877,1.0768754,111630.0,111620.0,0.16144536]
[1756267416573,0.003,111630.0,111620.0,1.01874815]
[1756267416883,0.1914254,111630.0,111620.0,0.61182876]
[1756267417066,0.2172054,111630.0,111620.0,0.92916475]
[1756267417270,0.2172054,111630.0,111620.0,0.16144536]
[1756267418076,0.2142134,111620.0,111610.0,0.02883]
[1756267418270,0.2142214,111610.0,111600.0,0.13143379]
[1756267418471,0.98194079,111610.0,111600.0,0.01972379]
[1756267418779,0.98194079,111610.0,111600.0,0.04855379]
[1756267419280,1.23194079,111610.0,111600.0,0.01972379]
[1756267419571,1.23194079,111610.0,111600.0,0.001]
[1756267419782,1.23194079,111610.0,111600.0,0.002]
[1756267419972,0.2090375,111590.0,111580.0,0.50865626]
[1756267420173,1.0713575,111590.0,111580.0,0.52667626]
[1756267420771,0.01675,111590.0,111580.0,1.02321125]
[1756267420971,0.0278751,111590.0,111580.0,1.02321125]
[1756267421175,0.1810675,111590.0,111580.0,0.61629186]
[1756267421369,1.25105,111600.0,111580.0,0.61629186]
[1756267421370,0.2090336,111600.0,111590.0,0.11086]
[1756267421575,0.2090336,111600.0,111590.0,0.50695]
[1756267421772,0.2090336,111600.0,111590.0,0.91386939]
[1756267421979,0.1518636,111600.0,111590.0,0.91386939]
[1756267422481,0.1630936,111600.0,111590.0,0.91386939]
[1756267423478,0.22653041,111600.0,111590.0,0.50695]
[1756267423884,0.6344498,111600.0,111590.0,0.06735]
[1756267424184,0.2090375,111590.0,111580.0,0.49223626]
[1756267424489,0.2090375,111590.0,111580.0,0.52667626]
[1756267424979,0.2090375,111590.0,111580.0,0.08707626]
[1756267424980,0.97675689,111590.0,111580.0,0.08707626]
[1756267425176,0.97675689,111590.0,111580.0,0.01972626]
[1756267425373,0.97675689,111590.0,111580.0,0.04855626]
[1756267425576,0.97675689,111590.0,111580.0,0.12151626]
[1756267425780,1.83895689,111590.0,111580.0,0.14785626]
[1756267427282,1.83895689,111590.0,111580.0,0.12151626]
[1756267427486,0.5698375,111590.0,111580.0,0.14785626]
[1756267427687,1.83895689,111590.0,111580.0,0.14785626]
[1756267428587,1.83895689,111590.0,111580.0,0.12151626]
[1756267429686,1.83895689,111590.0,111580.0,0.08707626]
[1756267430385,2.08895689,111590.0,111580.0,0.01972626]
[1756267430785,1.22675689,111590.0,111580.0,0.01972626]
[1756267430984,2.08887689,111590.0,111580.0,0.01972626]
[1756267433096,2.09087689,111590.0,111580.0,0.01972626]
[1756267433690,2.09287689,111590.0,111580.0,0.01972626]
[1756267437692,1.23075689,111590.0,111580.0,0.01972626]
[1756267438001,2.09279689,111590.0,111580.0,0.08707626]
[1756267438294,2.09279689,111590.0,111580.0,0.01972626]
[1756267438490,2.09279689,111590.0,111580.0,0.12151626]
[1756267438891,2.09279689,111590.0,111580.0,0.06582626]
[1756267439190,2.09279689,111590.0,111580.0,0.01972626]
[1756267439390,2.03306417,111590.0,111580.0,0.01972626]
[1756267439798,2.03290417,111590.0,111580.0,0.01972626]
[1756267440195,1.17102417,111590.0,111580.0,0.01972626]
[1756267440396,2.03290417,111590.0,111580.0,0.01972626]
[1756267442899,1.6856375,111590.0,111580.0,0.04855626]
[1756267443099,1.78282417,111590.0,111580.0,0.01972626]
[1756267444294,1.78282417,111590.0,111560.0,0.0461]
[1756267444295,0.1798536,111570.0,111560.0,0.0461]
[1756267444494,1.74960027,111570.0,111560.0,0.02883]
[1756267444795,1.74956027,111570.0,111560.0,0.02883]
[1756267444999,1.82264056,111570.0,111560.0,0.02883]
[1756267445401,1.82264056,111570.0,111560.0,0.08054]
[1756267445702,1.47545389,111570.0,111560.0,0.14615]
[1756267445908,1.65263124,111570.0,111560.0,0.14615]
[1756267447204,1.74225484,111570.0,111560.0,0.14615]
[1756267447397,1.74225484,111570.0,111560.0,0.11981]
[1756267447594,1.74225484,111570.0,111560.0,0.02883]
[1756267448705,1.74325484,111570.0,111560.0,0.02883]
[1756267448999,1.39594817,111570.0,111560.0,0.11109]
[1756267449200,1.38233484,111570.0,111560.0,0.1436]
[1756267449600,1.38333484,111570.0,111560.0,0.1436]
[1756267450102,1.74413484,111570.0,111560.0,0.1436]
[1756267450706,1.74513484,111570.0,111560.0,0.1436]
[1756267451317,1.39794817,111570.0,111560.0,0.08548]
[1756267451616,1.39894817,111570.0,111560.0,0.08548]
[1756267451809,1.80592656,111570.0,111560.0,0.08548]
[1756267452010,1.80592656,111570.0,111560.0,0.06682]
[1756267452714,0.94432656,111570.0,111560.0,0.09933]
[1756267453018,1.80580656,111570.0,111560.0,0.1436]
[1756267453718,1.80580656,111570.0,111560.0,0.04472]
[1756267453920,1.39882817,111570.0,111560.0,0.04472]
[1756267454119,1.80580656,111570.0,111560.0,0.02883]
[1756267454716,1.80580656,111570.0,111540.0,0.16173868]
[1756267454717,0.0896407,111550.0,111540.0,0.16173868]
[1756267454917,0.9510007,111550.0,111540.0,0.16173868]
[1756267455214,0.9671969,111550.0,111540.0,0.16173868]
[1756267456215,0.0161962,111550.0,111540.0,0.61218738]
[1756267456522,0.86136,111550.0,111540.0,1.01916577]
[1756267456823,0.86136,111550.0,111540.0,1.01915317]
[1756267457114,0.0896376,111560.0,111550.0,0.1304007]
[1756267457320,0.9509176,111560.0,111550.0,0.14205]
[1756267458617,0.96700413,111560.0,111550.0,0.4816912]
[1756267458922,0.87836653,111560.0,111550.0,1.24946959]
[1756267459519,0.87936653,111560.0,111550.0,1.24946959]
[1756267460022,0.87936653,111560.0,111550.0,0.8424912]
[1756267461421,0.96899973,111560.0,111550.0,0.8424912]
[1756267461620,0.96891973,111560.0,111550.0,0.8424912]
[1756267461824,0.87924653,111560.0,111550.0,0.8424912]
[1756267462124,0.86312,111560.0,111550.0,1.24946959]
[1756267463024,0.002,111560.0,111550.0,1.24946959]
[1756267463325,0.001,111560.0,111550.0,1.24946959]
[1756267463622,1.03909926,111570.0,111560.0,0.2316829]
[1756267464926,1.04009926,111570.0,111560.0,0.2316829]
[1756267465627,1.04109926,111570.0,111560.0,0.2316829]
[1756267466520,1.04109926,111570.0,111560.0,0.14205]
[1756267468223,1.04109926,111570.0,111560.0,0.2316837]
[1756267468822,0.17997926,111570.0,111560.0,0.2316837]
[1756267469018,1.04077926,111570.0,111560.0,0.2316837]
[1756267469831,0.09035436,111570.0,111560.0,0.2316837]
[1756267470131,0.95111436,111570.0,111560.0,1.24946209]
[1756267471323,0.95111436,111570.0,111560.0,1.18965527]
[1756267471727,0.93584029,111570.0,111560.0,1.18965527]
[1756267473635,0.07508029,111570.0,111560.0,1.18965527]
[1756267477435,0.07508029,111570.0,111560.0,1.30171159]
[1756267479224,0.07508029,111570.0,111560.0,1.18965527]
[1756267479730,0.002,111570.0,111560.0,1.28682684]
[1756267480032,0.002,111570.0,111560.0,0.5924837]
[1756267480230,0.002,111570.0,111560.0,0.93965527]
[1756267481035,0.87562056,111580.0,111570.0,0.1468969]
[1756267481336,0.94820694,111580.0,111570.0,0.94168847]
[1756267481636,0.08784694,111580.0,111570.0,0.94168847]
[1756267481828,1.3105748,111590.0,111580.0,0.1082589]
[1756267482032,1.3105748,111590.0,111580.0,0.2337089]
[1756267482441,1.5605748,111590.0,111580.0,0.2337089]
[1756267482935,1.57538767,111590.0,111580.0,0.2337089]
[1756267483134,1.57530767,111590.0,111580.0,0.2337089]
[1756267483332,1.32530767,111590.0,111580.0,0.2337089]
[1756267483530,1.32730767,111590.0,111580.0,0.2337089]
[1756267484135,1.32930767,111590.0,111580.0,0.58088047]
[1756267485144,1.32930767,111590.0,111580.0,0.2337089]
[1756267485839,1.39990191,111590.0,111580.0,0.2337089]
[1756267488336,0.45020711,111590.0,111580.0,0.58088047]
[1756267489041,1.30996711,111590.0,111580.0,0.58088047]
[1756267489541,1.39957881,111590.0,111580.0,0.2337089]
[1756267489842,1.39957881,111590.0,111580.0,0.58088047]
[1756267490040,0.53981881,111590.0,111580.0,0.58088047]
[1756267490736,1.39949881,111590.0,111580.0,0.2337089]
[1756267490942,1.03869881,111590.0,111580.0,0.58088047]
[1756267492440,0.08940711,111590.0,111580.0,0.58088047]
[1756267492643,0.93415424,111590.0,111580.0,1.19168047]
[1756267492940,0.94889422,111590.0,111580.0,1.19168047]
[1756267493341,0.94889422,111590.0,111580.0,0.83088047]
[1756267493643,1.03850602,111590.0,111580.0,0.94168047]
[1756267493846,0.94889422,111590.0,111580.0,0.5945089]
[1756267494043,0.94889422,111590.0,111580.0,0.94168047]
[1756267494243,0.94789422,111590.0,111580.0,0.94168047]
[1756267494845,0.94689422,111590.0,111580.0,0.94168047]
[1756267495044,0.94889422,111590.0,111580.0,0.94168047]
[1756267495645,0.94589422,111590.0,111580.0,0.94168047]
[1756267495844,0.94689422,111590.0,111580.0,0.94168047]
[1756267496446,0.94589422,111590.0,111580.0,0.94168047]
[1756267496649,0.94689422,111590.0,111580.0,0.94168047]
[1756267500345,1.63367749,111590.0,111580.0,0.02938]
[1756267500550,1.99447749,111590.0,111580.0,0.02938]
[1756267501657,1.64730592,111590.0,111580.0,0.02938]
[1756267501950,1.64682592,111590.0,111580.0,0.2337094]
[1756267502546,1.28602592,111590.0,111580.0,0.2337094]
[1756267502746,1.64682592,111590.0,111580.0,0.2337094]
[1756267503349,1.28602592,111590.0,111580.0,0.2337094]
[1756267504250,1.64682592,111590.0,111580.0,0.2337094]
[1756267504449,0.78774592,111590.0,111580.0,0.2337094]
[1756267504754,1.64674592,111590.0,111580.0,0.2337094]